fUST/lending_fUST_20250109
["ID","MTS","AMOUNT","RATE_DAILY","PERIOD"]
[348202509,1736386239202,-500.0,0.00019178,2]
[348202511,1736386239211,-500.0,0.00019178,2]
[348202513,1736386239220,-500.0,0.00019178,2]
[348202515,1736386239229,-500.0,0.00019178,2]
[348202517,1736386239239,-500.0,0.00019178,2]
[348202519,1736386239248,-500.0,0.00019178,2]
[348202521,1736386239262,-500.0,0.00019178,2]
[348202523,1736386239272,-500.0,0.00019178,2]
[348202525,1736386239280,-500.0,0.00019178,2]
[348202527,1736386239290,-500.0,0.00019178,2]
[348202529,1736386239301,-500.0,0.00019178,2]
[348202531,1736386239310,-500.0,0.00019178,2]
[348202533,1736386239319,-500.0,0.00019178,2]
[348202535,1736386239328,-500.0,0.00019178,2]
[348202537,1736386239339,-505.65591794,0.00019178,2]
[348202539,1736386239348,-500.0,0.00019178,2]
[348202541,1736386239358,-500.0,0.00019178,2]
[348202543,1736386239366,-500.0,0.00019178,2]
[348202545,1736386239377,-500.0,0.00019178,2]
[348202547,1736386239390,-500.0,0.00019178,2]
[348202549,1736386239399,-500.0,0.00019178,2]
[348202551,1736386239408,-500.0,0.00019178,2]
[348202553,1736386239417,-500.0,0.00019178,2]
[348202555,1736386239427,-500.0,0.00019178,2]
[348202557,1736386239436,-500.0,0.00019178,2]
[348202560,1736386239446,-500.0,0.00019178,2]
[348202562,1736386239456,-500.0,0.00019178,2]
[348202564,1736386239465,-500.0,0.00019178,2]
[348202566,1736386239474,-500.0,0.00019178,2]
[348202568,1736386239484,-443.63706688,0.00019178,2]
[348202570,1736386239494,-500.0,0.00019178,2]
[348202572,1736386239503,-500.0,0.00019178,2]
[348202574,1736386239513,-500.0,0.00019178,2]
[348202576,1736386239523,-500.0,0.00019178,2]
[348202578,1736386239533,-502.90602066,0.00019178,2]
[348202580,1736386239542,-500.0,0.00019178,2]
[348202582,1736386239552,-500.0,0.00019178,2]
[348202584,1736386239562,-500.0,0.00019178,2]
[348202586,1736386239572,-500.0,0.00019178,2]
[348202588,1736386239580,-500.0,0.00019178,2]
[348202590,1736386239590,-500.0,0.00019178,2]
[348202592,1736386239599,-500.0,0.00019178,2]
[348202594,1736386239608,-500.0,0.00019178,2]
[348202596,1736386239617,-500.0,0.00019178,2]
[348202597,1736386239626,-500.0,0.00019178,2]
[348202599,1736386239640,-500.0,0.00019178,2]
[348202601,1736386239649,-500.0,0.00019178,2]
[348202603,1736386239658,-500.0,0.00019178,2]
[348202605,1736386239668,-500.0,0.00019178,2]
[348202607,1736386239678,-500.0,0.00019178,2]
[348202609,1736386239688,-500.0,0.00019178,5]
[348202611,1736386239697,-519.49,0.00019178,2]
[348202613,1736386239707,-500.0,0.00019178,2]
[348202615,1736386239718,-500.0,0.00019178,2]
[348202617,1736386239727,-500.0,0.00019178,2]
[348202619,1736386239736,-500.0,0.00019178,2]
[348202621,1736386239746,-500.0,0.00019178,2]
[348202623,1736386239755,-500.0,0.00019178,2]
[348202625,1736386239764,-500.0,0.00019178,2]
[348202627,1736386239773,-500.0,0.00019178,2]
[348202629,1736386239782,-500.0,0.00019178,2]
[348202631,1736386239792,-500.0,0.00019178,2]
[348202633,1736386239801,-500.0,0.00019178,2]
[348202635,1736386239810,-500.0,0.00019178,2]
[348202637,1736386239820,-500.0,0.00019178,2]
[348202639,1736386239830,-500.0,0.00019178,2]
[348202641,1736386239839,-502.19,0.00019178,2]
[348202643,1736386239848,-412.22824479,0.00019178,2]
[348202645,1736386239858,-500.0,0.00019178,2]
[348202647,1736386239867,-500.0,0.00019178,2]
[348202649,1736386239876,-500.0,0.00019178,2]
[348202651,1736386239888,-500.0,0.00019178,2]
[348202652,1736386239897,-500.0,0.00019178,2]
[348202654,1736386239907,-500.0,0.00019178,2]
[348202657,1736386239920,-500.0,0.00019178,2]
[348202659,1736386239929,-516.80068342,0.00019178,2]
[348202661,1736386239938,-500.0,0.00019178,2]
[348202663,1736386239948,-500.0,0.00019178,2]
[348202665,1736386239958,-500.0,0.00019178,2]
[348202667,1736386239967,-500.0,0.00019178,2]
[348202669,1736386239977,-500.0,0.00019178,2]
[348202671,1736386239987,-500.0,0.00019178,2]
[348202673,1736386239996,-500.0,0.00019178,2]
[348202675,1736386240006,-550.71,0.00019178,2]
[348202677,1736386240015,-500.0,0.00019178,2]
[348202679,1736386240025,-500.0,0.00019178,2]
[348202681,1736386240034,-500.0,0.00019178,2]
[348202683,1736386240044,-500.0,0.00019178,2]
[348202685,1736386240054,-500.0,0.00019178,2]
[348202687,1736386240063,-216.08731582,0.00019178,2]
[348202689,1736386240074,-503.91869497,0.00019178,2]
[348202692,1736386240095,-500.0,0.00019178,2]
[348202694,1736386240105,-500.0,0.00019178,2]
[348202696,1736386240115,-500.0,0.00019178,2]
[348202698,1736386240125,-500.0,0.00019178,2]
[348202700,1736386240137,-500.0,0.00019178,2]
[348202702,1736386240147,-500.0,0.00019178,2]
[348202704,1736386240156,-500.0,0.00019178,2]
[348202706,1736386240166,-500.0,0.00019178,2]
[348202708,1736386240175,-500.0,0.00019178,2]
[348202710,1736386240184,-500.0,0.00019178,2]
[348202712,1736386240193,-500.0,0.00019178,2]
[348202714,1736386240202,-500.0,0.00019178,2]
[348202716,1736386240214,-500.0,0.00019178,2]
[348202718,1736386240224,-500.0,0.00019178,2]
[348202720,1736386240233,-500.0,0.00019178,2]
[348202722,1736386240242,-396.45840364,0.00019178,2]
[348202724,1736386240252,-500.0,0.00019178,2]
[348202726,1736386240265,-500.0,0.00019178,2]
[348202728,1736386240274,-500.0,0.00019178,2]
[348202740,1736386240374,-500.0,0.00019178,2]
[348202742,1736386240390,-352.24712626,0.00019178,2]
[348202744,1736386240400,-500.0,0.00019178,2]
[348202746,1736386240410,-2936.96,0.00019178,2]
[348202748,1736386240419,-500.0,0.00019178,2]
[348202750,1736386240428,-500.0,0.00019178,2]
[348202751,1736386240437,-500.0,0.00019178,2]
[348202752,1736386240447,-500.0,0.00019178,2]
[348202753,1736386240456,-500.0,0.00019178,2]
[348202754,1736386240466,-500.0,0.00019178,2]
[348202755,1736386240476,-500.0,0.00019178,2]
[348202756,1736386240486,-500.0,0.00019178,2]
[348202757,1736386240495,-500.0,0.00019178,2]
[348202758,1736386240505,-500.0,0.00019178,2]
[348202759,1736386240515,-500.0,0.00019178,2]
[348202760,1736386240525,-500.0,0.00019178,2]
[348202761,1736386240535,-534.1033339,0.00019178,2]
[348202763,1736386240545,-500.0,0.00019178,2]
[348202764,1736386240554,-500.0,0.00019178,2]
[348202765,1736386240564,-500.0,0.00019178,2]
[348202767,1736386240575,-500.0,0.00019178,2]
[348202768,1736386240584,-500.0,0.00019178,2]
[348202769,1736386240594,-500.0,0.00019178,2]
[348202770,1736386240604,-500.0,0.00019178,2]
[348202771,1736386240614,-500.0,0.00019178,2]
[348202772,1736386240623,-539.14,0.00019178,2]
[348202773,1736386240634,-513.61,0.00019178,2]
[348202775,1736386240643,-500.0,0.00019178,2]
[348202777,1736386240652,-500.0,0.00019178,2]
[348202779,1736386240662,-500.0,0.00019178,2]
[348202781,1736386240672,-500.0,0.00019178,2]
[348202783,1736386240681,-500.0,0.00019178,2]
[348202785,1736386240690,-500.0,0.00019178,2]
[348202787,1736386240700,-500.0,0.00019178,2]
[348202789,1736386240709,-500.0,0.00019178,2]
[348202791,1736386240719,-500.0,0.00019178,2]
[348202793,1736386240729,-500.0,0.00019178,2]
[348202795,1736386240738,-500.0,0.00019178,2]
[348202797,1736386240748,-500.0,0.00019178,2]
[348202799,1736386240758,-500.0,0.00019178,2]
[348202801,1736386240767,-500.0,0.00019178,2]
[348202803,1736386240777,-500.0,0.00019178,2]
[348202805,1736386240786,-500.0,0.00019178,2]
[348202807,1736386240796,-500.0,0.00019178,2]
[348202809,1736386240805,-500.0,0.00019178,2]
[348202811,1736386240814,-623.30972656,0.00019178,2]
[348202813,1736386240823,-500.0,0.00019178,2]
[348202815,1736386240832,-500.0,0.00019178,7]
[348202817,1736386240842,-500.0,0.00019178,2]
[348202819,1736386240851,-500.0,0.00019178,2]
[348202821,1736386240860,-500.0,0.00019178,2]
[348202823,1736386240869,-500.0,0.00019178,2]
[348202825,1736386240881,-500.0,0.00019178,2]
[348202827,1736386240890,-500.0,0.00019178,2]
[348202829,1736386240899,-500.0,0.00019178,2]
[348202831,1736386240909,-500.0,0.00019178,2]
[348202833,1736386240920,-500.0,0.00019178,2]
[348202835,1736386240929,-500.0,0.00019178,2]
[348202837,1736386240939,-500.0,0.00019178,2]
[348202839,1736386240948,-500.0,0.00019178,2]
[348202841,1736386240958,-500.0,0.00019178,2]
[348202843,1736386240967,-500.0,0.00019178,2]
[348202845,1736386240976,-507.21526964,0.00019178,2]
[348202847,1736386240986,-518.16665083,0.00019178,2]
[348202849,1736386240995,-726.79,0.00019178,2]
[348202851,1736386241005,-500.0,0.00019178,2]
[348202853,1736386241014,-500.0,0.00019178,2]
[348202855,1736386241024,-500.0,0.00019178,2]
[348202857,1736386241034,-500.0,0.00019178,2]
[348202859,1736386241043,-500.0,0.00019178,2]
[348202861,1736386241054,-502.22900089,0.00019178,2]
[348202863,1736386241063,-505.01899474,0.00019178,2]
[348202866,1736386241075,-500.0,0.00019178,2]
[348202868,1736386241085,-201.64452583,0.00019178,2]
[348202870,1736386241095,-500.0,0.00019178,2]
[348202872,1736386241104,-501.189518,0.00019178,2]
[348202874,1736386241113,-500.0,0.00019178,2]
[348202877,1736386241131,-153.47,0.00019178,2]
[348202879,1736386241141,-166.807922,0.00019178,2]
[348202882,1736386241150,-28945.76990745,0.000193,2]
[348202885,1736386241160,-552.1,0.0001945,3]
[348202888,1736386241169,-500.0,0.0001945,3]
[348202890,1736386241179,-500.0,0.00019451,3]
[348202892,1736386241188,-500.0,0.00019451,3]
[348202894,1736386241197,-500.0,0.00019451,3]
[348202896,1736386241206,-500.0,0.00019452,3]
[348202897,1736386241216,-500.0,0.00019452,3]
[348202899,1736386241225,-500.0,0.00019452,3]
[348202901,1736386241234,-500.0,0.00019452,3]
[348202903,1736386241243,-200.0,0.00019452,3]
[348202905,1736386241252,-256.02732035,0.00019452,3]
[348202907,1736386241265,-602.05168975,0.00019452,3]
[348202909,1736386241274,-500.0,0.00019452,3]
[348202911,1736386241284,-583.39011866,0.00019452,3]
[348202913,1736386241293,-500.0,0.00019452,3]
[348202915,1736386241303,-500.0,0.00019452,3]
[348202917,1736386241312,-500.0,0.00019452,3]
[348202919,1736386241321,-500.0,0.00019452,3]
[348202921,1736386241330,-500.0,0.00019452,3]
[348202923,1736386241341,-500.0,0.00019452,3]
[348202925,1736386241351,-500.0,0.00019452,3]
[348202927,1736386241361,-500.0,0.00019452,3]
[348202929,1736386241370,-500.0,0.00019452,3]
[348202931,1736386241378,-500.0,0.00019452,3]
[348202933,1736386241388,-500.0,0.00019452,3]
[348202935,1736386241397,-500.1,0.00019452,3]
[348202937,1736386241407,-500.0,0.00019452,3]
[348202939,1736386241416,-500.0,0.00019452,3]
[348202941,1736386241426,-518.66,0.00019452,3]
[348202943,1736386241435,-500.0,0.00019452,3]
[348202945,1736386241444,-601.66,0.00019452,3]
[348202947,1736386241454,-642.61,0.00019452,3]
[348202949,1736386241463,-500.0,0.00019452,3]
[348202951,1736386241472,-500.0,0.00019452,3]
[348202953,1736386241481,-155.67,0.00019452,2]
[348202955,1736386241490,-500.0,0.00019452,3]
[348202957,1736386241499,-344.01,0.00019452,3]
[348202959,1736386241509,-500.0,0.00019452,3]
[348202961,1736386241519,-607.22,0.00019452,3]
[348202963,1736386241528,-500.0,0.00019452,3]
[348202965,1736386241538,-500.0,0.00019452,3]
[348202967,1736386241547,-500.0,0.00019452,3]
[348202969,1736386241556,-500.0,0.00019452,3]
[348202971,1736386241565,-368.14,0.00019452,3]
[348202973,1736386241574,-2936.96,0.00019452,3]
[348202975,1736386241584,-500.0,0.00019452,3]
[348202977,1736386241593,-500.0,0.00019452,3]
[348202979,1736386241603,-170.27,0.00019452,3]
[348202981,1736386241612,-500.0,0.00019452,3]
[348202983,1736386241621,-500.0,0.00019452,3]
[348202985,1736386241631,-500.0,0.00019452,3]
[348202987,1736386241641,-500.0,0.00019452,3]
[348202989,1736386241650,-500.0,0.00019452,3]
[348202991,1736386241659,-500.0,0.00019452,3]
[348202993,1736386241668,-500.0,0.00019452,3]
[348202995,1736386241678,-500.0,0.00019452,3]
[348202997,1736386241688,-500.0,0.00019452,3]
[348202999,1736386241698,-508.73,0.00019452,3]
[348203001,1736386241708,-500.0,0.00019452,3]
[348203003,1736386241717,-500.0,0.00019452,3]
[348203005,1736386241726,-500.0,0.00019452,3]
[348203007,1736386241735,-500.0,0.00019452,3]
[348203009,1736386241745,-500.0,0.00019452,3]
[348203012,1736386241755,-500.0,0.00019452,3]
[348203013,1736386241764,-500.0,0.00019452,3]
[348203015,1736386241773,-500.0,0.00019452,3]
[348203018,1736386241783,-500.0,0.00019452,3]
[348203020,1736386241793,-500.0,0.00019452,3]
[348203022,1736386241802,-500.0,0.00019452,3]
[348203024,1736386241812,-500.0,0.00019452,3]
[348203025,1736386241822,-500.0,0.00019452,3]
[348203028,1736386241831,-500.0,0.00019452,3]
[348203030,1736386241841,-500.0,0.00019452,3]
[348203032,1736386241850,-506.17765982,0.00019452,3]
[348203034,1736386241860,-510.96332687,0.00019452,3]
[348203036,1736386241869,-726.79,0.00019452,3]
[348203038,1736386241879,-513.97337899,0.00019452,3]
[348203039,1736386241889,-500.0,0.00019452,3]
[348203041,1736386241898,-509.77835353,0.00019452,3]
[348203043,1736386241908,-623.66896861,0.00019452,3]
[348203045,1736386241917,-505.00017289,0.00019452,3]
[348203047,1736386241927,-515.91519936,0.00019452,3]
[348203049,1736386241936,-500.0,0.00019724,3]
[348203052,1736386241945,-500.0,0.00019725,3]
[348203053,1736386241955,-500.0,0.00019725,3]
[348203056,1736386241965,-187.46759288,0.00019725,2]
[348203057,1736386241974,-202.03086811,0.00019725,2]
[348203060,1736386241983,-294.56788985,0.00019725,2]
[348203062,1736386241993,-500.0,0.00019726,3]
[348203064,1736386242003,-245.96,0.00019726,3]
[348203066,1736386242012,-445.24,0.00019726,3]
[348203068,1736386242021,-634.7,0.00019726,3]
[348203070,1736386242030,-500.0,0.00019726,3]
[348203072,1736386242039,-500.0,0.00019726,3]
[348203074,1736386242048,-500.0,0.00019726,3]
[348203076,1736386242058,-500.0,0.00019726,3]
[348203078,1736386242068,-328.45,0.00019726,3]
[348203079,1736386242077,-303.65,0.00019726,3]
[348203081,1736386242088,-280.56,0.00019726,3]
[348203084,1736386242097,-500.0,0.00019726,3]
[348203086,1736386242107,-500.0,0.00019726,3]
[348203088,1736386242116,-2936.96,0.00019726,3]
[348203090,1736386242126,-500.0,0.00019726,3]
[348203091,1736386242135,-500.0,0.00019726,3]
[348203093,1736386242144,-437.64,0.00019726,3]
[348203095,1736386242153,-500.0,0.00019726,3]
[348203098,1736386242163,-500.0,0.00019726,3]
[348203100,1736386242172,-500.0,0.00019726,3]
[348203102,1736386242182,-448.07,0.00019726,3]
[348203103,1736386242191,-608.57,0.00019726,3]
[348203105,1736386242201,-464.95,0.00019726,3]
[348203108,1736386242211,-618.16,0.00019726,3]
[348203109,1736386242220,-455.23,0.00019726,3]
[348203111,1736386242229,-496.29,0.00019726,3]
[348203113,1736386242238,-341.56,0.00019726,3]
[348203115,1736386242247,-726.79,0.00019726,3]
[348203118,1736386242261,-580.19933523,0.00019726,3]
[348203119,1736386242270,-212.03316844,0.000199,2]
[348203121,1736386242279,-500.0,0.00019999,3]
[348203123,1736386242288,-500.0,0.00019999,3]
[348203125,1736386242299,-373.98,0.0002,3]
[348203128,1736386242308,-353.3,0.0002,3]
[348203129,1736386242317,-432.57,0.0002,3]
[348203131,1736386242327,-151.0,0.0002,2]
[348203133,1736386242338,-523.18,0.0002,3]
[348203135,1736386242347,-500.0,0.0002,3]
[348203137,1736386242357,-151.0,0.0002,2]
[348203139,1736386242367,-151.0,0.0002,2]
[348203141,1736386242376,-2936.96,0.0002,3]
[348203143,1736386242385,-500.0,0.0002,3]
[348203145,1736386242394,-176.08,0.0002,3]
[348203147,1736386242404,-463.29,0.0002,3]
[348203149,1736386242413,-151.0,0.0002,2]
[348203151,1736386242422,-500.0,0.0002,3]
[348203153,1736386242431,-500.0,0.0002,3]
[348203155,1736386242440,-454.67979,0.0002,2]
[348203157,1736386242450,-454.67979,0.0002,2]
[348203159,1736386242459,-726.79,0.0002,3]
[348203161,1736386242469,-500.0,0.00020272,3]
[348203163,1736386242478,-151.0,0.00020273,2]
[348203165,1736386242487,-500.0,0.00020273,3]
[348203167,1736386242497,-2936.96,0.00020273,3]
[348203169,1736386242506,-500.0,0.00020273,3]
[348203171,1736386242516,-469.16,0.00020273,3]
[348203173,1736386242525,-351.84,0.00020273,3]
[348203175,1736386242535,-500.0,0.00020273,3]
[348203177,1736386242544,-500.0,0.00020273,3]
[348203179,1736386242554,-726.79,0.00020273,3]
[348203181,1736386242563,-151.0,0.00020547,2]
[348203183,1736386242573,-500.0,0.00020547,3]
[348203185,1736386242582,-2936.96,0.00020547,3]
[348203187,1736386242591,-500.0,0.00020547,3]
[348203189,1736386242601,-264.44,0.00020547,3]
[348203191,1736386242610,-500.0,0.00020547,3]
[348203193,1736386242619,-726.79,0.00020547,3]
[348203203,1736386242628,-1500.0,0.000208,2]
[348203206,1736386242716,-151.0,0.000208,2]
[348203208,1736386242725,-151.0,0.000208,2]
[348203210,1736386242735,-500.0,0.00020821,3]
[348203212,1736386242744,-2936.96,0.00020821,3]
[348203214,1736386242754,-500.0,0.00020821,3]
[348203216,1736386242763,-500.0,0.00020821,3]
[348203218,1736386242772,-726.79,0.00020821,3]
[348203220,1736386242782,-151.0,0.00021056,6]
[348203222,1736386242791,-500.0,0.00021095,3]
[348203224,1736386242800,-2936.96,0.00021095,3]
[348203226,1736386242810,-500.0,0.00021095,3]
[348203228,1736386242819,-500.0,0.00021095,3]
[348203230,1736386242829,-726.79,0.00021095,3]
[348203232,1736386242839,-151.0,0.00021105,2]
[348203234,1736386242848,-151.0,0.00021105,2]
[348203236,1736386242858,-151.0,0.00021324,6]
[348203238,1736386242867,-500.0,0.00021368,3]
[348203240,1736386242877,-865.13,0.00021369,3]
[348203242,1736386242887,-500.0,0.00021369,3]
[348203244,1736386242896,-2936.96,0.00021369,3]
[348203246,1736386242906,-500.0,0.00021369,3]
[348203248,1736386242916,-390.96269247,0.00021369,3]
[348203250,1736386242925,-519.89700965,0.00021369,3]
[348203259,1736386242996,-206.89299035,0.00021369,3]
[348203261,1736386243006,-153.0,0.00021562,2]
[348203263,1736386243015,-153.0,0.00021562,2]
[348203265,1736386243024,-153.0,0.00021562,2]
[348203267,1736386243033,-153.0,0.00021562,2]
[348203270,1736386243043,-154.5829004,0.00021562,2]
[348203272,1736386243052,-151.0,0.00021592,6]
[348203274,1736386243061,-865.13,0.00021643,3]
[348203276,1736386243071,-500.0,0.00021643,3]
[348203278,1736386243081,-2936.96,0.00021643,3]
[348203280,1736386243091,-500.0,0.00021643,3]
[348203282,1736386243100,-726.79,0.00021643,3]
[348203284,1736386243110,-543.078,0.0002185,2]
[348203286,1736386243119,-151.0,0.0002186,6]
[348203288,1736386243128,-865.13,0.00021917,3]
[348203290,1736386243139,-500.0,0.00021917,3]
[348203292,1736386243148,-151.0,0.00021917,2]
[348203294,1736386243158,-151.0,0.00021917,2]
[348203296,1736386243168,-2936.96,0.00021917,3]
[348203298,1736386243177,-500.0,0.00021917,3]
[348203300,1736386243187,-726.79,0.00021917,3]
[348203302,1736386243197,-151.0,0.00022,7]
[348203304,1736386243207,-454.67979,0.00022,7]
[348203306,1736386243216,-454.67979,0.00022,7]
[348203308,1736386243225,-394.0,0.00022098,2]
[348203310,1736386243234,-151.0,0.00022128,6]
[348203312,1736386243243,-500.0,0.0002219,2]
[348203314,1736386243253,-151.0,0.00022191,7]
[348203316,1736386243265,-865.13,0.00022191,3]
[348203318,1736386243275,-151.0,0.00022191,7]
[348203320,1736386243285,-500.0,0.00022191,3]
[348203322,1736386243294,-2936.96,0.00022191,3]
[348203324,1736386243303,-500.0,0.00022191,3]
[348203326,1736386243313,-726.79,0.00022191,3]
[348203328,1736386243322,-606.14,0.000223,2]
[348203330,1736386243331,-1577.66607668,0.0002238,2]
[348203332,1736386243342,-151.0,0.00022396,7]
[348203334,1736386243351,-500.0,0.00022464,3]
[348203336,1736386243361,-865.13,0.00022465,3]
[348203338,1736386243370,-151.0,0.00022465,7]
[348203340,1736386243379,-151.0,0.00022465,7]
[348203342,1736386243390,-194.99194588,0.00022465,3]
[348203344,1736386243399,-2936.96,0.00022465,3]
[348203346,1736386243408,-235.37,0.00022465,3]
[348203348,1736386243417,-726.79,0.00022465,3]
[348203350,1736386243427,-3471.21242419,0.000225,10]
[348203352,1736386243439,-528.78757581,0.000225,10]
[348203355,1736386243448,-73.13936019,0.00022535,2]
[348203357,1736386243460,-926.86063981,0.00022535,2]
[348203359,1736386243469,-885.47049934,0.00022604,2]
[348203362,1736386243483,-114.52950066,0.00022604,2]
[348203365,1736386243492,-1000.0,0.00022648,2]
[348203367,1736386243501,-151.0,0.00022664,7]
[348203370,1736386243511,-1000.0,0.0002268,2]
[348203373,1736386243521,-200.0,0.000227,4]
[348203376,1736386243530,-200.0,0.000227,5]
[348203378,1736386243539,-200.0,0.000227,6]
[348203380,1736386243549,-200.0,0.000227,7]
[348203382,1736386243558,-200.0,0.000227,8]
[348203384,1736386243568,-200.0,0.000227,4]
[348203386,1736386243577,-200.0,0.000227,14]
[348203389,1736386243590,-200.0,0.000227,4]
[348203391,1736386243600,-200.0,0.000227,4]
[348203393,1736386243609,-200.0,0.000227,7]
[348203395,1736386243619,-200.0,0.000227,5]
[348203397,1736386243628,-228.0,0.000227,4]
[348203399,1736386243639,-228.0,0.000227,6]
[348203401,1736386243648,-230.04280399,0.000227,7]
[348203403,1736386243657,-865.13,0.00022739,3]
[348203405,1736386243667,-2936.96,0.00022739,3]
[348203407,1736386243676,-726.79,0.00022739,3]
[348203408,1736386243684,-1000.0,0.00022744,2]
[348203410,1736386243694,-316.6511174,0.00022769,2]
[348203413,1736386243703,-17405.46499925,0.00022799,5]
[348203415,1736386243712,-71211.37595543,0.000228,5]
[348203423,1736386243777,-500.0,0.00019178,2]
[348203425,1736386243786,-191.15,0.00019178,2]
[348203442,1736386243930,-308.85,0.00019178,2]
[348203445,1736386243941,-500.0,0.00019452,3]
[348203447,1736386243950,-166.97907009,0.00019452,2]
[348203449,1736386243959,-500.0,0.00019726,3]
[348203451,1736386243968,-131.54013059,0.0002,3]
[348203453,1736386243979,-29.04935359,0.0002,3]
[348203455,1736386243989,-1196.13020141,0.000228,5]
[348203586,1736386247031,-1867.14471808,0.000228,5]
[348203587,1736386247043,-2023.18,0.000228,5]
[348203588,1736386259811,400.0,0.00025,120]
[348203589,1736386290402,162.79277,0.00013973,2]
[348203594,1736386469260,1000.0,0.00015001,2]
[348203595,1736386473311,170.33,0.00025,120]
[348203596,1736386489071,1000.0,0.00015001,2]
[348203598,1736387157150,-300.0,0.00018382,2]
[348203599,1736387157172,-519.59802414,0.00018383,2]
[348203600,1736387160212,500.0,0.00025,120]
[348203601,1736387240123,-300.0,0.00018382,2]
[348203602,1736387240146,-948.62953523,0.00018383,2]
[348203603,1736387244090,-859.34188858,0.00018383,2]
[348203604,1736387248084,-7029.45905973,0.00018383,2]
[348203605,1736387252147,-765.93906238,0.00018383,2]
[348203607,1736387350111,-5429.91074018,0.00018383,2]
[348203608,1736387358103,-1960.0,0.00018383,2]
[348203620,1736387432331,-160.37757466,0.00018383,2]
[348203621,1736387432340,-150.0,0.000189,2]
[348203623,1736387432349,-189.62242534,0.0001899,2]
[348203625,1736387432360,-342.42666817,0.0001899,2]
[348203626,1736387432372,-656.29837822,0.0001899,2]
[348203627,1736387432384,-1811.65252827,0.0001899,2]
[348203628,1736387432393,-176.56821865,0.00019078,2]
[348203629,1736387432403,-198.98686846,0.00019078,2]
[348203630,1736387432413,-154.89613108,0.00019177,2]
[348203631,1736387432423,-500.0,0.00019177,2]
[348203632,1736387432433,-500.0,0.00019177,2]
[348203633,1736387432444,-500.0,0.00019177,2]
[348203634,1736387432455,-500.0,0.00019177,2]
[348203635,1736387432464,-500.0,0.00019177,2]
[348203636,1736387432474,-180.44079475,0.00019177,2]
[348203637,1736387432483,-500.0,0.00019177,2]
[348203638,1736387432493,-246.47082499,0.00019177,2]
[348203639,1736387432503,-625.95032681,0.00019177,2]
[348203640,1736387432513,-500.0,0.00019177,2]
[348203641,1736387432523,-500.0,0.00019177,2]
[348203642,1736387432532,-500.0,0.00019177,2]
[348203643,1736387432542,-500.0,0.00019177,2]
[348203644,1736387432552,-500.0,0.00019177,2]
[348203645,1736387432561,-500.0,0.00019177,2]
[348203646,1736387432571,-500.0,0.00019177,2]
[348203647,1736387432580,-500.0,0.00019177,2]
[348203648,1736387432589,-500.0,0.00019177,2]
[348203649,1736387432598,-500.0,0.00019177,2]
[348203650,1736387432607,-500.0,0.00019177,2]
[348203651,1736387432617,-500.0,0.00019177,2]